fUST/lending_fUST_20250701
["ID","MTS","AMOUNT","RATE_DAILY","PERIOD"]
[368828757,1751374254355,-460.0,0.00017927,2]
[368828758,1751374254364,-460.0,0.00017927,2]
[368828759,1751374254374,-460.0,0.00017927,2]
[368828760,1751374254383,-460.0,0.00017927,2]
[368828761,1751374254392,-460.0,0.00017927,2]
[368828762,1751374254402,-460.0,0.00017927,2]
[368828763,1751374254411,-460.0,0.00017927,2]
[368828764,1751374254421,-460.0,0.00017927,2]
[368828765,1751374254430,-460.0,0.00017927,2]
[368828766,1751374254440,-460.0,0.00017927,2]
[368828767,1751374254448,-460.0,0.00017927,2]
[368828768,1751374254458,-460.0,0.00017927,2]
[368828770,1751374254467,-3495.9,0.00017927,2]
[368828771,1751374254476,-683.92,0.00017927,2]
[368828773,1751374254486,-460.0,0.00017927,2]
[368828775,1751374254495,-464.81410227,0.00017927,2]
[368828777,1751374254505,-1035.67,0.00017927,2]
[368828779,1751374254515,-460.0,0.00017927,2]
[368828781,1751374254525,-478.0151022,0.00017927,2]
[368828783,1751374254534,-460.0,0.00017927,2]
[368828784,1751374254544,-460.0,0.00017927,2]
[368828786,1751374254554,-408.78252256,0.00017927,2]
[368828788,1751374254563,-460.0,0.00017927,2]
[368828790,1751374254573,-460.0,0.00017927,2]
[368828791,1751374254582,-460.0,0.00017927,2]
[368828793,1751374254592,-460.0,0.00017927,2]
[368828795,1751374254601,-460.0,0.00017927,2]
[368828796,1751374254615,-460.0,0.00017927,2]
[368828798,1751374254631,-460.0,0.00017927,2]
[368828799,1751374254640,-460.0,0.00017927,2]
[368828800,1751374254649,-460.0,0.00017927,2]
[368828802,1751374254659,-460.0,0.00017927,2]
[368828804,1751374254668,-151.575806,0.00017927,2]
[368828806,1751374254678,-460.0,0.00017927,2]
[368828807,1751374254687,-151.0,0.00017927,2]
[368828809,1751374254697,-151.185124,0.00017927,2]
[368828811,1751374254706,-460.0,0.00017927,2]
[368828812,1751374254716,-460.0,0.00017927,2]
[368828814,1751374254726,-460.0,0.00017927,2]
[368828816,1751374254739,-460.0,0.00017927,2]
[368828818,1751374254759,-460.0,0.00017927,2]
[368828819,1751374254772,-599.29,0.00017928,2]
[368828821,1751374254782,-460.0,0.00017929,2]
[368828822,1751374254793,-599.29,0.00017929,2]
[368828823,1751374254803,-599.29,0.00017929,2]
[368828825,1751374254815,-599.29,0.00017929,2]
[368828826,1751374254824,-599.29,0.00017929,2]
[368828828,1751374254834,-599.33,0.00017929,2]
[368828829,1751374254843,-154.422424,0.00017929,2]
[368828830,1751374254852,-151.0,0.00017929,2]
[368828831,1751374254861,-160.440771,0.00017929,2]
[368828832,1751374254871,-160.440771,0.00017929,2]
[368828833,1751374254880,-151.0,0.00018,2]
[368828834,1751374254890,-700.0,0.00018013,2]
[368828835,1751374254899,-999.0998537,0.00018082,2]
[368828836,1751374254908,-151.0,0.000181,2]
[368828837,1751374254918,-460.0,0.00018196,2]
[368828838,1751374254927,-460.0,0.00018196,2]
[368828839,1751374254937,-362.50518996,0.00018196,2]
[368828840,1751374254947,-460.0,0.00018196,2]
[368828841,1751374254956,-460.0,0.00018196,2]
[368828842,1751374254968,-460.0,0.00018196,2]
[368828844,1751374254979,-1458.73,0.00018196,2]
[368828845,1751374254989,-460.0,0.00018196,2]
[368828846,1751374254998,-2022.4,0.00018196,2]
[368828847,1751374255010,-460.0,0.00018196,2]
[368828848,1751374255093,-417.86098524,0.00018196,2]
[368828849,1751374255103,-1686.84,0.00018196,2]
[368828850,1751374255113,-460.0,0.00018196,2]
[368828851,1751374255122,-460.0,0.00018196,2]
[368828852,1751374255134,-460.0,0.00018196,2]
[368828853,1751374255144,-460.0,0.00018197,2]
[368828854,1751374255153,-460.0,0.00018197,2]
[368828855,1751374255163,-460.0,0.00018197,2]
[368828856,1751374255173,-215.97376704,0.00018197,2]
[368828857,1751374255182,-460.0,0.00018197,2]
[368828858,1751374255192,-460.0,0.00018197,2]
[368828859,1751374255202,-460.0,0.00018197,2]
[368828860,1751374255211,-1509.5,0.00018197,2]
[368828861,1751374255221,-460.0,0.00018197,2]
[368828862,1751374255231,-2209.27,0.00018197,2]
[368828863,1751374255240,-460.0,0.00018197,2]
[368828864,1751374255250,-460.0,0.00018197,2]
[368828865,1751374255259,-165.72,0.00018197,2]
[368828866,1751374255268,-1057.77,0.00018197,2]
[368828867,1751374255278,-460.0,0.00018197,2]
[368828868,1751374255287,-460.0,0.00018197,2]
[368828869,1751374255297,-460.0,0.00018197,2]
[368828870,1751374255306,-460.0,0.00018197,2]
[368828871,1751374255315,-460.0,0.00018197,2]
[368828872,1751374255325,-516.2,0.00018197,2]
[368828873,1751374255335,-460.0,0.00018197,2]
[368828874,1751374255344,-460.0,0.00018197,2]
[368828875,1751374255353,-449.63948808,0.00018197,2]
[368828876,1751374255363,-536.72,0.00018197,2]
[368828877,1751374255372,-460.0,0.00018197,2]
[368828878,1751374255382,-504.42756139,0.00018197,2]
[368828879,1751374255391,-460.0,0.00018197,2]
[368828880,1751374255401,-460.0,0.00018197,2]
[368828881,1751374255410,-699.43,0.00018197,2]
[368828882,1751374255420,-592.18,0.00018198,2]
[368828883,1751374255430,-151.0,0.00018198,2]
[368828884,1751374255439,-460.0,0.00018198,2]
[368828885,1751374255449,-460.0,0.00018198,2]
[368828886,1751374255458,-151.0,0.00018198,2]
[368828887,1751374255469,-1238.22,0.00018198,2]
[368828888,1751374255479,-460.0,0.00018198,2]
[368828889,1751374255489,-490.45,0.00018198,2]
[368828890,1751374255498,-460.0,0.00018198,2]
[368828891,1751374255508,-460.0,0.00018199,2]
[368828892,1751374255517,-312.2674905,0.00018199,2]
[368828893,1751374255526,-460.0,0.00018199,2]
[368828894,1751374255536,-460.0,0.00018199,2]
[368828895,1751374255545,-460.0,0.00018199,2]
[368828896,1751374255555,-460.0,0.00018199,2]
[368828897,1751374255565,-227.1,0.00018199,2]
[368828898,1751374255574,-607.21,0.00018199,2]
[368828899,1751374255584,-460.0,0.00018199,2]
[368828900,1751374255593,-460.0,0.00018199,2]
[368828901,1751374255603,-606.84,0.00018199,2]
[368828902,1751374255612,-460.0,0.00018199,2]
[368828903,1751374255621,-460.0,0.00018199,2]
[368828904,1751374255631,-460.0,0.00018199,2]
[368828905,1751374255641,-210.87035549,0.00018199,2]
[368828906,1751374255650,-296.32089642,0.00018199,2]
[368828907,1751374255660,-551.73,0.00018199,2]
[368828908,1751374255670,-592.56,0.00018199,2]
[368828909,1751374255679,-460.0,0.00018199,2]
[368828910,1751374255689,-460.0,0.00018199,2]
[368828911,1751374255699,-460.0,0.00018199,2]
[368828912,1751374255711,-460.0,0.00018199,2]
[368828913,1751374255721,-460.0,0.00018199,2]
[368828914,1751374255730,-1469.03,0.00018199,2]
[368828915,1751374255740,-153.96,0.00018199,2]
[368828916,1751374255749,-460.0,0.00018199,2]
[368828917,1751374255758,-486.46,0.00018199,2]
[368828918,1751374255767,-460.0,0.00018199,2]
[368828919,1751374255778,-460.0,0.00018199,2]
[368828920,1751374255787,-460.0,0.00018199,2]
[368828921,1751374255796,-567.62,0.00018199,2]
[368828922,1751374255806,-599.94,0.00018199,2]
[368828923,1751374255816,-460.0,0.00018199,2]
[368828924,1751374255825,-651.51,0.00018199,2]
[368828925,1751374255834,-460.0,0.00018199,2]
[368828926,1751374255844,-460.0,0.00018199,2]
[368828927,1751374255853,-460.0,0.00018199,2]
[368828928,1751374255862,-460.0,0.00018199,2]
[368828929,1751374255871,-460.0,0.00018199,2]
[368828930,1751374255881,-460.0,0.00018199,2]
[368828932,1751374255890,-560.3,0.00018199,2]
[368828934,1751374255899,-460.0,0.00018199,2]
[368828936,1751374255910,-460.0,0.00018199,2]
[368828938,1751374255919,-460.0,0.00018199,2]
[368828940,1751374255928,-460.0,0.00018199,2]
[368828941,1751374255937,-460.0,0.00018199,2]
[368828943,1751374255947,-460.0,0.00018199,2]
[368828945,1751374255955,-460.0,0.000182,2]
[368828947,1751374255967,-151.0,0.000182,2]
[368828949,1751374255976,-460.0,0.000182,2]
[368828950,1751374255985,-460.0,0.000182,2]
[368828952,1751374255995,-2717.39,0.000182,2]
[368828954,1751374256005,-460.0,0.000182,2]
[368828955,1751374256015,-843.56,0.000182,2]
[368828957,1751374256024,-460.0,0.000182,2]
[368828959,1751374256034,-735.46,0.000182,2]
[368828961,1751374256044,-460.0,0.000182,2]
[368828963,1751374256054,-1020.15,0.000182,2]
[368828964,1751374256063,-772.19,0.000182,2]
[368828965,1751374256073,-1277.02,0.000182,2]
[368828967,1751374256082,-460.0,0.000182,2]
[368828969,1751374256091,-460.0,0.00018201,2]
[368828971,1751374256100,-463.7498021,0.00018201,2]
[368828973,1751374256109,-460.0,0.00018201,2]
[368828975,1751374256119,-460.0,0.00018201,2]
[368828976,1751374256128,-460.0,0.00018201,2]
[368828977,1751374256138,-460.0,0.00018201,2]
[368828978,1751374256147,-460.0,0.00018201,2]
[368828979,1751374256157,-460.0,0.00018201,2]
[368828980,1751374256167,-460.0,0.00018201,2]
[368828981,1751374256176,-460.0,0.00018201,2]
[368828982,1751374256185,-460.0,0.00018201,2]
[368828983,1751374256195,-460.0,0.00018201,2]
[368828985,1751374256204,-460.0,0.00018201,2]
[368828986,1751374256214,-460.0,0.00018201,2]
[368828988,1751374256223,-460.0,0.00018201,2]
[368828990,1751374256233,-488.74,0.00018201,2]
[368828991,1751374256246,-538.09,0.00018201,2]
[368828992,1751374256255,-460.0,0.00018201,2]
[368828994,1751374256265,-460.0,0.00018201,2]
[368828996,1751374256277,-460.0,0.00018201,2]
[368828998,1751374256286,-429.38,0.00018201,2]
[368829000,1751374256296,-460.0,0.00018201,2]
[368829001,1751374256305,-867.15,0.00018201,2]
[368829005,1751374256383,-460.0,0.00018201,2]
[368829006,1751374256393,-151.0,0.00018201,2]
[368829007,1751374256402,-460.0,0.00018201,2]
[368829008,1751374256412,-464.34,0.00018201,2]
[368829009,1751374256422,-460.0,0.00018201,2]
[368829010,1751374256431,-602.95636315,0.00018201,2]
[368829011,1751374256440,-483.42,0.00018201,2]
[368829012,1751374256451,-3495.9,0.00018201,2]
[368829013,1751374256460,-683.92,0.00018201,2]
[368829014,1751374256470,-151.0,0.00018201,2]
[368829015,1751374256480,-460.0,0.00018201,2]
[368829016,1751374256489,-1035.67,0.00018201,2]
[368829017,1751374256499,-151.0,0.00018201,2]
[368829018,1751374256509,-151.0,0.00018201,2]
[368829019,1751374256518,-546.76,0.00018201,2]
[368829020,1751374256528,-151.0,0.00018201,2]
[368829021,1751374256537,-151.0,0.00018201,2]
[368829022,1751374256547,-460.0,0.00018201,2]
[368829023,1751374256556,-151.0,0.00018201,2]
[368829024,1751374256565,-460.0,0.00018201,2]
[368829025,1751374256574,-460.0,0.00018201,2]
[368829026,1751374256583,-460.0,0.00018201,2]
[368829027,1751374256593,-460.0,0.00018201,2]
[368829028,1751374256602,-460.0,0.00018201,2]
[368829029,1751374256612,-460.0,0.00018201,2]
[368829030,1751374256621,-460.0,0.00018201,2]
[368829031,1751374256632,-460.0,0.00018201,2]
[368829032,1751374256641,-166.96174028,0.00018201,2]
[368829033,1751374256650,-500.0,0.00018221,2]
[368829034,1751374256660,-1000.0,0.00018221,2]
[368829035,1751374256670,-294.83006245,0.00018387,2]
[368829036,1751374256679,-151.0,0.000184,2]
[368829037,1751374256689,-460.0,0.0001847,2]
[368829038,1751374256698,-460.0,0.0001847,2]
[368829039,1751374256708,-460.0,0.0001847,2]
[368829040,1751374256717,-460.0,0.0001847,2]
[368829041,1751374256727,-1458.73,0.0001847,2]
[368829042,1751374256736,-460.0,0.0001847,2]
[368829043,1751374256746,-2022.4,0.0001847,2]
[368829044,1751374256756,-460.0,0.0001847,2]
[368829045,1751374256765,-1686.84,0.0001847,2]
[368829046,1751374256775,-460.0,0.0001847,2]
[368829047,1751374256784,-460.0,0.0001847,2]
[368829048,1751374256793,-460.0,0.00018471,2]
[368829049,1751374256804,-460.0,0.00018471,2]
[368829050,1751374256814,-1509.5,0.00018471,2]
[368829051,1751374256824,-460.0,0.00018471,2]
[368829052,1751374256833,-2209.27,0.00018471,2]
[368829053,1751374256843,-460.0,0.00018471,2]
[368829054,1751374256853,-460.0,0.00018471,2]
[368829055,1751374256862,-1057.77,0.00018471,2]
[368829056,1751374256872,-460.0,0.00018471,2]
[368829057,1751374256882,-460.0,0.00018471,2]
[368829058,1751374256891,-460.0,0.00018471,2]
[368829059,1751374256900,-460.0,0.00018471,2]
[368829060,1751374256909,-516.2,0.00018471,2]
[368829061,1751374256918,-460.0,0.00018471,2]
[368829062,1751374256928,-460.0,0.00018471,2]
[368829063,1751374256938,-699.43,0.00018471,2]
[368829064,1751374256948,-151.0,0.00018472,2]
[368829065,1751374256957,-152.375359,0.00018472,2]
[368829066,1751374256972,-460.0,0.00018472,2]
[368829067,1751374256981,-460.0,0.00018472,2]
[368829068,1751374256991,-1238.22,0.00018472,2]
[368829069,1751374257001,-460.0,0.00018472,2]
[368829070,1751374257012,-490.45,0.00018472,2]
[368829071,1751374257021,-409.12,0.00018472,2]
[368829072,1751374257031,-460.0,0.00018473,2]
[368829073,1751374257041,-460.0,0.00018473,2]
[368829074,1751374257050,-260.46,0.00018473,2]
[368829075,1751374257060,-460.0,0.00018473,2]
[368829076,1751374257069,-545.41,0.00018473,2]
[368829077,1751374257078,-460.0,0.00018473,2]
[368829078,1751374257088,-336.38,0.00018473,2]
[368829079,1751374257098,-460.0,0.00018473,2]
[368829080,1751374257107,-460.0,0.00018473,2]
[368829081,1751374257117,-460.0,0.00018473,2]
[368829082,1751374257126,-460.0,0.00018473,2]
[368829083,1751374257136,-473.76,0.00018473,2]
[368829084,1751374257145,-1469.03,0.00018473,2]
[368829085,1751374257155,-486.46,0.00018473,2]
[368829086,1751374257164,-516.54,0.00018473,2]
[368829087,1751374257174,-460.0,0.00018473,2]
[368829088,1751374257187,-460.0,0.00018473,2]
[368829089,1751374257197,-651.51,0.00018473,2]
[368829090,1751374257207,-460.0,0.00018473,2]
[368829091,1751374257216,-460.0,0.00018473,2]
[368829092,1751374257226,-460.0,0.00018473,2]
[368829093,1751374257235,-461.94,0.00018473,2]
[368829094,1751374257244,-460.0,0.00018473,2]
[368829095,1751374257254,-460.0,0.00018473,2]
[368829096,1751374257264,-220.2,0.00018473,2]
[368829097,1751374257274,-280.35,0.00018473,2]
[368829098,1751374257283,-460.0,0.00018473,2]
[368829099,1751374257293,-461.03,0.00018473,2]
[368829100,1751374257302,-167.66,0.00018474,2]
[368829101,1751374257312,-460.0,0.00018474,2]
[368829102,1751374257322,-2717.39,0.00018474,2]
[368829103,1751374257331,-460.0,0.00018474,2]
[368829104,1751374257341,-843.56,0.00018474,2]
[368829105,1751374257350,-735.46,0.00018474,2]
[368829106,1751374257360,-460.0,0.00018474,2]
[368829107,1751374257370,-1020.15,0.00018474,2]
[368829108,1751374257380,-772.19,0.00018474,2]
[368829109,1751374257389,-1277.02,0.00018474,2]
[368829110,1751374257398,-278.6,0.00018474,2]
[368829111,1751374257408,-460.0,0.00018475,2]
[368829112,1751374257417,-460.0,0.00018475,2]
[368829113,1751374257426,-460.0,0.00018475,2]
[368829114,1751374257435,-460.0,0.00018475,2]
[368829115,1751374257445,-460.0,0.00018475,2]
[368829116,1751374257455,-204.55962986,0.00018475,2]
[368829117,1751374257464,-287.86,0.00018475,2]
[368829118,1751374257473,-460.0,0.00018475,2]
[368829119,1751374257483,-460.0,0.00018475,2]
[368829120,1751374257493,-460.0,0.00018475,2]
[368829121,1751374257503,-549.04,0.00018475,2]
[368829122,1751374257579,-460.0,0.00018475,2]
[368829123,1751374257588,-151.0,0.00018475,2]
[368829124,1751374257598,-151.0,0.00018475,2]
[368829125,1751374257608,-219.829232,0.00018475,2]
[368829126,1751374257618,-151.0,0.00018475,2]
[368829127,1751374257628,-191.691102,0.00018475,2]
[368829128,1751374257638,-191.691102,0.00018475,2]
[368829129,1751374257649,-279.92,0.00018475,2]
[368829130,1751374257659,-460.0,0.00018475,2]
[368829131,1751374257669,-867.15,0.00018475,2]
[368829132,1751374257678,-154.89,0.00018475,2]
[368829133,1751374257688,-3495.9,0.00018475,2]
[368829134,1751374257697,-683.92,0.00018475,2]
[368829135,1751374257707,-370.03304749,0.00018475,2]
[368829136,1751374257718,-1035.67,0.00018475,2]
[368829137,1751374257727,-466.57569299,0.00018475,2]
[368829138,1751374257736,-460.0,0.00018475,2]
[368829139,1751374257746,-460.0,0.00018475,2]
[368829140,1751374257756,-460.0,0.00018475,2]
[368829141,1751374257765,-460.0,0.00018475,2]
[368829142,1751374257775,-151.0,0.000185,2]
[368829143,1751374257784,-151.0,0.000185,2]
[368829144,1751374257794,-151.0,0.00018501,2]
[368829145,1751374257804,-12571.40790328,0.00018501,2]
[368829146,1751374257814,-160.0,0.00018501,2]
[368829147,1751374257824,-213.87551669,0.00018501,2]
[368829148,1751374257834,-160.0,0.00018501,2]
[368829149,1751374257843,-160.0,0.00018501,2]
[368829150,1751374257852,-160.0,0.00018501,2]
[368829151,1751374257862,-160.0,0.00018501,2]
[368829152,1751374257873,-160.0,0.00018501,2]
[368829153,1751374257882,-160.0,0.00018501,2]
[368829154,1751374257891,-230.32585361,0.00018501,2]
[368829155,1751374257902,-837.20943635,0.00018501,2]
[368829156,1751374257911,-847.53272281,0.00018501,2]
[368829157,1751374257922,-215.01728679,0.00018501,2]
[368829158,1751374257931,-160.0,0.0001851,2]
[368829159,1751374257940,-160.0,0.0001851,2]
[368829160,1751374257950,-3169.66458269,0.00018512,2]
[368829161,1751374257959,-199.0,0.00018567,2]
[368829162,1751374257971,-151.0,0.00018595,2]
[368829163,1751374257981,-151.0,0.00018595,2]
[368829164,1751374257990,-151.0,0.00018595,2]
[368829165,1751374258000,-151.0,0.00018595,2]
[368829166,1751374258010,-151.0,0.00018595,2]
[368829167,1751374258019,-151.0,0.00018595,2]
[368829168,1751374258028,-151.0,0.000187,2]
[368829169,1751374258038,-151.0,0.000187,2]
[368829170,1751374258049,-151.0,0.000187,2]
[368829171,1751374258059,-2277.84,0.00018737,3]
[368829172,1751374258068,-1138.92,0.00018737,3]
[368829173,1751374258077,-569.46,0.00018737,3]
[368829174,1751374258087,-4555.66,0.00018738,3]
[368829175,1751374258096,-847.53272281,0.00018739,3]
[368829176,1751374258105,-213.87551669,0.00018739,3]
[368829177,1751374258115,-12571.40790328,0.00018739,3]
[368829178,1751374258125,-151.0,0.00018739,2]
[368829179,1751374258135,-151.0,0.00018739,2]
[368829180,1751374258145,-151.0,0.00018739,2]
[368829181,1751374258154,-151.0,0.00018739,2]
[368829182,1751374258164,-160.440771,0.00018739,2]
[368829183,1751374258173,-160.440771,0.00018739,2]
[368829184,1751374258183,-407.01144267,0.00018744,2]
[368829185,1751374258192,-460.0,0.00018744,2]
[368829186,1751374258203,-460.0,0.00018744,2]
[368829187,1751374258213,-1458.73,0.00018744,2]
[368829188,1751374258223,-460.0,0.00018744,2]
[368829189,1751374258232,-2022.4,0.00018744,2]
[368829190,1751374258242,-460.0,0.00018744,2]
[368829191,1751374258252,-1686.84,0.00018744,2]
[368829192,1751374258261,-460.0,0.00018744,2]
[368829193,1751374258271,-460.0,0.00018744,2]
[368829194,1751374258281,-280.18,0.00018745,2]
[368829195,1751374258291,-1509.5,0.00018745,2]
[368829196,1751374258300,-2209.27,0.00018745,2]
[368829197,1751374258309,-460.0,0.00018745,2]
[368829198,1751374258319,-460.0,0.00018745,2]
[368829199,1751374258329,-1057.77,0.00018745,2]
[368829200,1751374258338,-151.0,0.00018745,2]
[368829201,1751374258348,-151.0,0.00018745,2]
[368829202,1751374258357,-576.39,0.00018745,2]
[368829203,1751374258366,-460.0,0.00018745,2]
[368829204,1751374258376,-460.0,0.00018745,2]
[368829205,1751374258385,-460.0,0.00018745,2]
[368829206,1751374258395,-516.2,0.00018745,2]
[368829207,1751374258404,-460.0,0.00018745,2]
[368829208,1751374258413,-460.0,0.00018745,2]
[368829209,1751374258423,-699.43,0.00018745,2]
[368829210,1751374258433,-460.0,0.00018746,2]
[368829211,1751374258443,-569.28,0.00018746,2]
[368829212,1751374258453,-1238.22,0.00018746,2]
[368829213,1751374258463,-460.0,0.00018746,2]
[368829214,1751374258472,-490.45,0.00018746,2]
[368829215,1751374258482,-460.0,0.00018747,2]
[368829216,1751374258492,-460.0,0.00018747,2]
[368829217,1751374258501,-332.49,0.00018747,2]
[368829218,1751374258511,-460.0,0.00018747,2]
[368829219,1751374258521,-460.0,0.00018747,2]
[368829220,1751374258531,-460.0,0.00018747,2]
[368829221,1751374258540,-460.0,0.00018747,2]
[368829222,1751374258550,-1469.03,0.00018747,2]
[368829223,1751374258559,-486.46,0.00018747,2]
[368829224,1751374258569,-460.0,0.00018747,2]
[368829225,1751374258579,-603.86,0.00018747,2]
[368829226,1751374258590,-651.51,0.00018747,2]
[368829227,1751374258600,-460.0,0.00018747,2]
[368829228,1751374258609,-460.0,0.00018747,2]
[368829229,1751374258619,-460.0,0.00018747,2]
[368829230,1751374258694,-460.0,0.00018747,2]
[368829231,1751374258704,-510.42,0.00018747,2]
[368829232,1751374258713,-460.0,0.00018747,2]
[368829233,1751374258722,-460.0,0.00018748,2]
[368829234,1751374258732,-2717.39,0.00018748,2]
[368829235,1751374258741,-460.0,0.00018748,2]
[368829236,1751374258751,-843.56,0.00018748,2]
[368829237,1751374258761,-735.46,0.00018748,2]
[368829238,1751374258770,-460.0,0.00018748,2]
[368829239,1751374258780,-1020.15,0.00018748,2]
[368829240,1751374258789,-772.19,0.00018748,2]
[368829241,1751374258798,-1277.02,0.00018748,2]
[368829242,1751374258807,-460.0,0.00018749,2]
[368829243,1751374258816,-460.0,0.00018749,2]
[368829244,1751374258826,-460.0,0.00018749,2]
[368829245,1751374258836,-460.0,0.00018749,2]
[368829246,1751374258846,-460.0,0.00018749,2]
[368829247,1751374258855,-460.0,0.00018749,2]
[368829248,1751374258864,-867.15,0.00018749,2]
[368829249,1751374258874,-3495.9,0.00018749,2]
[368829250,1751374258883,-683.92,0.00018749,2]
[368829251,1751374258893,-1035.67,0.00018749,2]
[368829252,1751374258902,-115.17504016,0.00018749,2]
[368829254,1751374309472,-171.53104544,0.00017277,2]
[368829255,1751374312722,-200.0,0.00017277,2]
[368829256,1751374314211,-218.82412494,0.00017277,2]
[368829257,1751374316767,-200.0,0.00017277,2]
[368829258,1751374318761,-339.60574898,0.00017277,2]
[368829259,1751374320671,-266.17612128,0.00017277,2]
[368829260,1751374322229,-241.03639327,0.00017277,2]
[368829261,1751374324774,-163.89413252,0.00017277,2]
[368829262,1751374330262,2748.8683932,0.00016507,2]
[368829263,1751374334825,404.93052579,0.000171,2]
[368829264,1751374390055,-169.24106211,0.00017177,2]
[368829265,1751374393712,-72.81840911,0.00017177,2]
[368829266,1751374399380,445.54,0.00024658,120]
[368829268,1751374503186,222.1849488,0.00016503,2]
[368829269,1751374514121,-222.62409619,0.00017144,2]
[368829270,1751374517137,-109.57879607,0.00017144,2]
[368829272,1751374581851,-2402.672389,0.00017277,2]
[368829273,1751374581989,-4805.344778,0.00017277,2]
[368829274,1751374582072,-389.310444,0.00017277,2]
[368829275,1751374582107,-1200.0,0.00017371,2]
[368829276,1751374582138,-300.0,0.00017371,2]
[368829277,1751374582170,-1200.0,0.00017371,2]
[368829278,1751374582204,-218.82412494,0.00017372,2]
[368829279,1751374582234,-460.0,0.00017372,2]
[368829280,1751374582263,-460.0,0.00017372,2]
[368829281,1751374582294,-460.0,0.00017372,2]
[368829282,1751374582324,-163.73086212,0.00017372,2]
[368829283,1751374582499,-296.26913788,0.00017372,2]
[368829284,1751374582528,-460.0,0.00017372,2]
[368829285,1751374582557,-460.0,0.00017372,2]
[368829286,1751374582586,-460.0,0.00017372,2]
[368829287,1751374582615,-385.962643,0.00017372,2]
[368829288,1751374582644,-460.0,0.00017372,2]
[368829289,1751374582673,-486.86723737,0.00017372,2]
[368829290,1751374582702,-178.1184926,0.00017372,2]
[368829291,1751374582731,-460.0,0.00017372,2]
[368829292,1751374582760,-460.0,0.00017372,2]
[368829293,1751374582789,-460.0,0.00017372,2]
[368829294,1751374582819,-363.3609219,0.00017373,2]
[368829295,1751374582993,-138.8431345,0.00017373,2]
[368829296,1751374583023,-503.36801097,0.00017373,2]
[368829297,1751374583053,-500.0,0.00017373,2]
[368829298,1751374583082,-500.0,0.00017373,2]
[368829299,1751374583112,-500.0,0.00017373,2]
[368829300,1751374583141,-500.0,0.00017373,2]
[368829301,1751374583171,-500.0,0.00017373,2]
[368829302,1751374583203,-500.0,0.00017373,2]
[368829303,1751374583233,-500.0,0.00017373,2]
[368829304,1751374584259,-3284.64834565,0.00017373,2]
[368829305,1751374584279,-10000.0,0.00017373,2]
[368829306,1751374584328,-10000.0,0.00017373,2]
[368829307,1751374584355,-10000.0,0.00017373,2]
[368829308,1751374584374,-10000.0,0.00017373,2]
[368829309,1751374584406,-3284.64834565,0.00017373,2]
[368829310,1751374584443,-3430.7033087,0.00017373,2]
[368829311,1751374584473,-460.0,0.00017373,2]
[368829312,1751374584503,-460.0,0.00017373,2]
[368829313,1751374584532,-460.0,0.00017373,2]
[368829314,1751374584594,-460.0,0.00017373,2]